bitfinex/quotes_BTCUSD_20241001
["timestamp","ask_amount","ask_price","bid_price","bid_amount"]
[1727765904350,0.48350569,64206.0,64205.0,0.001]
[1727765904569,0.36689325,64206.0,64205.0,0.01280662]
[1727765904829,0.36689325,64206.0,64205.0,0.00606815]
[1727765905288,0.52464125,64206.0,64205.0,0.00606815]
[1727765905518,0.52464125,64206.0,64205.0,0.00506815]
[1727765905738,0.005,64205.0,64199.0,0.0017461]
[1727765906008,0.06997975,64202.0,64201.0,0.15576]
[1727765906226,0.06997975,64202.0,64200.0,0.23677793]
[1727765906227,0.24976414,64202.0,64200.0,0.01188215]
[1727765906454,0.22644032,64201.0,64200.0,0.01188215]
[1727765906664,0.1564578,64201.0,64200.0,0.01188215]
[1727765906884,0.33601015,64201.0,64200.0,0.01188215]
[1727765907099,0.42931649,64201.0,64200.0,0.01188215]
[1727765907594,0.42931649,64201.0,64200.0,0.155763]
[1727765907822,0.42931649,64201.0,64200.0,0.157409]
[1727765908038,0.42931649,64201.0,64200.0,0.16929115]
[1727765908472,0.22645031,64201.0,64200.0,0.16929115]
[1727765908694,0.20311888,64201.0,64200.0,0.16929115]
[1727765908915,0.1564578,64201.0,64200.0,0.16929115]
[1727765909343,0.1574578,64201.0,64200.0,0.17029115]
[1727765909777,0.1574578,64201.0,64200.0,0.16929115]
[1727765910004,0.1584578,64201.0,64200.0,0.16929115]
[1727765910245,0.1574578,64201.0,64200.0,0.16929115]
[1727765910689,0.1584578,64201.0,64200.0,0.16929115]
[1727765911634,0.18287598,64201.0,64200.0,0.16929115]
[1727765914207,0.18487598,64201.0,64200.0,0.01352815]
[1727765914443,0.27618232,64201.0,64200.0,0.01352815]
[1727765914683,0.45365663,64201.0,64200.0,0.001646]
[1727765914916,0.36214896,64201.0,64200.0,0.001646]
[1727765915862,0.63958313,64201.0,64200.0,0.001646]
[1727765916086,0.70413846,64201.0,64200.0,0.001646]
[1727765916350,0.98393761,64201.0,64200.0,0.001646]
[1727765916600,0.98393761,64201.0,64199.0,0.0017461]
[1727765916601,0.295763,64200.0,64199.0,0.00168736]
[1727765916887,0.88211016,64200.0,64199.0,0.00168736]
[1727765917117,0.172777,64194.0,64193.0,0.0017481]
[1727765917395,0.82147778,64194.0,64193.0,0.0017481]
[1727765917674,1.22963285,64194.0,64193.0,0.0017481]
[1727765917898,1.25405882,64194.0,64193.0,0.0017481]
[1727765918354,1.22568174,64194.0,64193.0,0.0017481]
[1727765918590,1.06820248,64194.0,64193.0,0.0017481]
[1727765919327,1.06820248,64194.0,64193.0,0.001648]
[1727765919826,1.17120248,64194.0,64193.0,0.002648]
[1727765920049,1.16820248,64194.0,64193.0,0.001648]
[1727765920497,1.32568174,64194.0,64193.0,0.001648]
[1727765920728,1.32568174,64194.0,64181.0,0.1769]
[1727765920729,0.007,64184.0,64181.0,0.1769]
[1727765920979,0.59172588,64184.0,64182.0,0.23677793]
[1727765921216,0.59172588,64184.0,64181.0,0.0498252]
[1727765921217,0.162806,64182.0,64181.0,0.0498252]
[1727765921513,0.162806,64182.0,64180.0,1.0]
[1727765921514,0.162809,64181.0,64180.0,1.0]
[1727765921742,0.38917088,64181.0,64180.0,1.0]
[1727765921989,0.3192668,64181.0,64180.0,1.0]
[1727765922464,0.38914755,64181.0,64180.0,1.0]
[1727765922961,0.38914475,64181.0,64180.0,1.0]
[1727765923198,0.3192668,64181.0,64180.0,1.0]
[1727765923441,0.36583835,64181.0,64180.0,1.0]
[1727765923678,0.64894152,64181.0,64180.0,1.0]
[1727765923908,0.64895392,64181.0,64180.0,1.0]
[1727765924132,0.62161337,64181.0,64180.0,1.0]
[1727765924361,0.52844277,64181.0,64180.0,1.0]
[1727765924600,0.54944277,64181.0,64180.0,1.0]
[1727765925266,0.5638725,64181.0,64180.0,1.0]
[1727765925493,0.61395215,64181.0,64180.0,1.0]
[1727765925958,0.55414331,64181.0,64180.0,1.0]
[1727765926201,0.39569653,64181.0,64180.0,1.0]
[1727765926437,0.44222076,64181.0,64180.0,1.0]
[1727765926678,0.39769653,64181.0,64180.0,1.0]
[1727765927151,0.39569653,64181.0,64180.0,1.0]
[1727765927386,0.39769653,64181.0,64180.0,1.0]
[1727765927618,0.37269653,64181.0,64180.0,1.0]
[1727765927873,0.37269653,64181.0,64180.0,1.1721]
[1727765928343,0.20688753,64181.0,64180.0,1.1721]
[1727765929081,0.1824578,64181.0,64180.0,1.1721]
[1727765929306,0.3382668,64181.0,64180.0,1.1721]
[1727765929778,0.1774578,64181.0,64180.0,1.1721]
[1727765930033,0.1774578,64181.0,64180.0,1.327911]
[1727765930287,0.1774578,64181.0,64180.0,1.1721]
[1727765930569,0.1774578,64181.0,64180.0,1.327911]
[1727765931299,0.1664578,64181.0,64180.0,1.327911]
[1727765931772,0.1684578,64181.0,64180.0,1.327911]
[1727765932225,0.1664578,64181.0,64180.0,1.173748]
[1727765932463,0.1704578,64181.0,64180.0,1.173748]
[1727765932943,0.1604578,64181.0,64180.0,1.173748]
[1727765933393,0.1624578,64181.0,64180.0,1.329559]
[1727765934575,0.1584578,64181.0,64180.0,1.329559]
[1727765935031,0.1644578,64181.0,64180.0,1.329559]
[1727765935262,0.18142864,64181.0,64180.0,1.173748]
[1727765935496,0.1614578,64181.0,64180.0,1.173748]
[1727765935731,0.1674578,64181.0,64180.0,1.173748]
[1727765936190,0.1614578,64181.0,64180.0,1.329559]
[1727765936416,0.1674578,64181.0,64180.0,1.329559]
[1727765937626,0.1674578,64181.0,64180.0,1.173748]
[1727765938590,0.1674578,64181.0,64180.0,1.329559]
[1727765938848,0.1674578,64181.0,64180.0,1.173748]
[1727765940763,0.1674578,64181.0,64180.0,1.001648]
[1727765940764,0.35567468,64181.0,64180.0,1.001648]
[1727765941488,0.3232668,64181.0,64180.0,1.001648]
[1727765941714,0.34769451,64181.0,64180.0,1.001648]
[1727765942699,0.19188551,64181.0,64180.0,1.001648]
[1727765943416,0.19188551,64181.0,64180.0,1.157459]
[1727765943652,0.19188551,64181.0,64180.0,1.334759]
[1727765946000,11.62904051,64181.0,64180.0,1.334759]
[1727765947795,11.62904051,64181.0,64180.0,1.178948]
[1727765948476,11.6046128,64181.0,64180.0,1.334759]
[1727765949215,11.76105958,64181.0,64180.0,1.178948]
[1727765949446,11.76105958,64181.0,64180.0,1.334759]
[1727765949891,11.6046128,64181.0,64180.0,1.334759]
[1727765951710,11.62903976,64181.0,64180.0,1.334759]
[1727765952749,11.6046128,64181.0,64180.0,1.334759]
[1727765955048,11.62903914,64181.0,64180.0,1.334759]
[1727765957465,11.67566789,64181.0,64180.0,1.334759]
[1727765957950,11.83211467,64181.0,64180.0,1.334759]
[1727765958444,11.8310027,64181.0,64180.0,1.178948]
[1727765958701,11.8310027,64181.0,64180.0,1.080748]
[1727765959423,12.03107965,64181.0,64180.0,1.080748]
[1727765960128,11.87463287,64181.0,64180.0,1.080748]
[1727765960361,11.78137537,64181.0,64180.0,1.080748]
[1727765960832,11.78137537,64181.0,64180.0,1.001648]
[1727765961597,11.96161182,64181.0,64180.0,1.001648]
[1727765961839,11.80580282,64181.0,64180.0,1.001648]
[1727765962814,11.78137537,64181.0,64180.0,1.001648]
[1727765963059,11.78137537,64181.0,64180.0,1.157459]
[1727765963306,11.78137537,64181.0,64180.0,1.001648]
[1727765963540,11.78137537,64181.0,64180.0,1.239859]
[1727765963788,11.78137537,64181.0,64180.0,1.26077293]
[1727765964033,11.78137537,64181.0,64180.0,1.239859]
[1727765964277,11.8982636,64181.0,64180.0,1.26077267]
[1727765964528,11.89835659,64181.0,64180.0,1.26077267]
[1727765965007,11.78146886,64181.0,64180.0,1.001648]
[1727765965263,11.92173413,64181.0,64180.0,1.001648]
[1727765965510,12.18448615,64181.0,64180.0,1.001648]
[1727765965728,11.78146886,64181.0,64180.0,1.001648]
[1727765965963,11.92174581,64181.0,64180.0,1.001648]
[1727765966474,11.78146886,64181.0,64180.0,1.001648]
[1727765968295,11.91454476,64181.0,64180.0,1.001648]
[1727765969275,11.9146478,64181.0,64180.0,1.001648]
[1727765969518,12.31788544,64181.0,64180.0,1.001648]
[1727765969972,12.32288544,64181.0,64180.0,1.001648]
[1727765971844,12.32488544,64181.0,64180.0,1.001648]
[1727765972321,12.34931366,64181.0,64180.0,1.001648]
[1727765972832,12.45291366,64181.0,64180.0,1.001648]
[1727765973063,12.54591366,64181.0,64180.0,1.001648]
[1727765973750,12.54391366,64181.0,64180.0,1.001648]
[1727765975162,12.54591366,64181.0,64180.0,1.001648]
[1727765977263,12.55591366,64181.0,64180.0,1.001648]
[1727765978464,12.53148544,64181.0,64180.0,1.001648]
[1727765978699,12.52897861,64181.0,64180.0,1.001648]
[1727765978933,12.9805195,64181.0,64180.0,1.001648]
[1727765980315,12.9755195,64181.0,64180.0,1.001648]
[1727765980576,12.9695195,64181.0,64180.0,1.001648]
[1727765981039,12.9955195,64181.0,64180.0,1.001648]
[1727765981776,12.63197861,64181.0,64180.0,1.001648]
[1727765981996,12.49890271,64181.0,64180.0,1.001648]
[1727765982240,12.51290271,64181.0,64180.0,1.001648]
[1727765983144,12.49890271,64181.0,64180.0,1.001648]
[1727765983588,12.51290271,64181.0,64180.0,1.001648]
[1727765985664,12.53733368,64181.0,64180.0,1.001648]
[1727765985886,12.69378046,64181.0,64180.0,1.001648]
[1727765987873,13.16121046,64181.0,64180.0,1.001648]
[1727765988374,13.16205365,64181.0,64180.0,1.001648]
[1727765989056,13.13762268,64181.0,64180.0,1.001648]
[1727765990588,13.31714747,64181.0,64180.0,1.001648]
[1727765991043,14.94358784,64181.0,64180.0,1.001648]
[1727765991488,14.91558784,64181.0,64180.0,1.001648]
[1727765991704,14.92958784,64181.0,64180.0,1.001648]
[1727765991934,14.94358784,64181.0,64180.0,1.001648]
[1727765992412,14.61678075,64181.0,64180.0,0.56796485]
[1727765992632,14.58878075,64181.0,64180.0,0.56796485]
[1727765993065,14.60097756,64181.0,64180.0,0.56796485]
[1727765993302,13.74130856,64181.0,64180.0,0.56796485]
[1727765993738,13.50377156,64181.0,64180.0,0.56796485]
[1727765994141,13.80376956,64181.0,64180.0,0.56796485]
[1727765994355,13.81776956,64181.0,64180.0,0.56796485]
[1727765994801,13.78976956,64181.0,64180.0,0.56796485]
[1727765995017,13.80376956,64181.0,64180.0,0.56796485]
[1727765995445,13.81776956,64181.0,64180.0,0.56796485]
[1727765996087,13.33977656,64181.0,64180.0,0.56796485]
[1727765997939,13.34022456,64181.0,64180.0,0.56796485]
[1727765998812,12.99741152,64181.0,64180.0,0.56796485]
[1727765999091,12.83294697,64181.0,64180.0,0.56796485]
[1727765999322,12.97297924,64181.0,64180.0,0.56796485]
[1727765999798,12.81894697,64181.0,64180.0,0.56796485]
[1727766000260,12.95897924,64181.0,64180.0,0.56796485]
[1727766000494,12.98939375,64181.0,64180.0,0.56796485]
[1727766000714,13.12942602,64181.0,64180.0,0.56796485]
[1727766000946,12.97539375,64181.0,64180.0,0.56796485]
[1727766001392,13.1294979,64181.0,64180.0,0.56796485]
[1727766001623,13.1154979,64181.0,64180.0,0.56796485]
[1727766001859,13.1014979,64181.0,64180.0,0.56796485]
[1727766002079,13.43900156,64181.0,64180.0,0.56796485]
[1727766002305,13.66577693,64181.0,64180.0,0.56796485]
[1727766002525,13.49497693,64181.0,64180.0,0.56796485]
[1727766002751,12.98570615,64181.0,64180.0,0.56796485]
[1727766003462,12.97170615,64181.0,64180.0,0.56796485]
[1727766003709,12.49637236,64181.0,64180.0,0.74216485]
[1727766003940,12.49637236,64181.0,64180.0,0.89797585]
[1727766003941,12.1082109,64181.0,64180.0,0.89797585]
[1727766004165,12.04928349,64181.0,64180.0,0.89797585]
[1727766004404,11.932585,64181.0,64180.0,0.89797585]
[1727766004638,11.932585,64181.0,64180.0,0.9185859]
[1727766004868,11.918585,64181.0,64180.0,0.9185859]
[1727766005095,12.0750428,64181.0,64180.0,0.89797585]
[1727766005312,12.0890428,64181.0,64180.0,0.91855217]
[1727766005551,12.0890428,64181.0,64180.0,0.89797585]
[1727766005775,11.918585,64181.0,64180.0,0.89797585]
[1727766005994,11.718585,64181.0,64180.0,0.82414811]
[1727766006262,11.671985,64181.0,64180.0,0.82414811]
[1727766006502,11.574685,64181.0,64180.0,0.82414811]
[1727766006754,11.408085,64181.0,64180.0,0.74434811]
[1727766006998,11.403385,64181.0,64180.0,0.92361947]
[1727766007240,11.403385,64181.0,64180.0,0.95607539]
[1727766007494,11.417385,64181.0,64180.0,0.92361947]
[1727766007715,11.417385,64181.0,64180.0,1.18007727]
[1727766007716,8.97358685,64181.0,64180.0,1.18007727]
[1727766007947,8.97358685,64181.0,64180.0,1.02361947]
[1727766007948,8.50515685,64181.0,64180.0,1.02361947]
[1727766008419,8.50515685,64181.0,64180.0,1.15950501]
[1727766008636,8.49215685,64181.0,64180.0,1.18165708]
[1727766008859,8.49215685,64181.0,64180.0,1.21291708]
[1727766009095,8.49115685,64181.0,64180.0,1.21291708]
[1727766009542,8.49215685,64181.0,64180.0,1.21391708]
[1727766009992,8.49315685,64181.0,64180.0,1.21391708]
[1727766010225,8.49315685,64181.0,64180.0,1.21191708]
[1727766010459,8.49315685,64181.0,64180.0,1.05545928]
[1727766010675,8.49215685,64181.0,64180.0,1.05545928]
[1727766011174,8.49215685,64181.0,64180.0,1.05445928]
[1727766011613,8.49215685,64181.0,64180.0,1.05545928]
[1727766012082,8.49115685,64181.0,64180.0,1.05445928]
[1727766012344,8.49215685,64181.0,64180.0,1.05545928]
[1727766012994,8.49215685,64181.0,64180.0,0.87618792]
[1727766013213,8.49215685,64181.0,64180.0,1.00404721]
[1727766014376,8.49315685,64181.0,64180.0,1.00404721]
[1727766014827,8.49115685,64181.0,64180.0,1.00304721]
[1727766015061,8.49215685,64181.0,64180.0,1.00404721]
[1727766015294,8.49315685,64181.0,64180.0,1.00404721]
[1727766016266,8.49315685,64181.0,64180.0,0.72477585]
[1727766016513,8.51757899,64181.0,64180.0,0.72477585]
[1727766017234,8.51840299,64181.0,64180.0,0.90404721]
[1727766017470,8.51740299,64181.0,64180.0,0.90404721]
[1727766017707,8.51740299,64181.0,64180.0,0.91596749]
[1727766017708,8.51840299,64181.0,64180.0,0.91596749]
[1727766017944,8.51840299,64181.0,64180.0,0.90404721]
[1727766018375,8.51640299,64181.0,64180.0,0.90304721]
[1727766018885,8.51740299,64181.0,64180.0,0.90304721]
[1727766019121,8.49298085,64181.0,64180.0,0.90404721]
[1727766019618,8.49298085,64181.0,64180.0,0.90304721]
[1727766019841,8.49398085,64181.0,64180.0,0.90404721]
[1727766020348,8.49398085,64181.0,64180.0,1.00304721]
[1727766020349,8.49298085,64181.0,64180.0,1.00304721]
[1727766021003,8.49198085,64181.0,64180.0,1.00304721]
[1727766021954,8.49298085,64181.0,64180.0,1.00304721]
[1727766022194,8.49398085,64181.0,64180.0,1.02419642]
[1727766022423,8.49298085,64181.0,64180.0,1.02419642]
[1727766022668,8.49198085,64181.0,64180.0,1.02319642]
[1727766022899,8.49298085,64181.0,64180.0,1.02419642]
[1727766023114,8.49398085,64181.0,64180.0,1.02419642]
[1727766023343,8.51740181,64181.0,64180.0,1.02319642]
[1727766023758,8.51840181,64181.0,64180.0,1.02419642]
[1727766024521,8.51840181,64181.0,64180.0,1.02319642]
[1727766024522,8.51740181,64181.0,64180.0,1.02319642]
[1727766024738,8.51640181,64181.0,64180.0,1.02319642]
[1727766025247,8.51740181,64181.0,64180.0,1.02419642]
[1727766026404,8.51740181,64181.0,64180.0,1.05743515]
[1727766026405,8.51840181,64181.0,64180.0,1.05743515]
[1727766026672,8.51740181,64181.0,64180.0,1.08768515]
[1727766026884,8.51740181,64181.0,64180.0,1.05543898]
[1727766027130,8.56840181,64181.0,64180.0,1.1088075]
[1727766027373,8.56840181,64181.0,64180.0,1.08866573]
[1727766028117,8.54198085,64181.0,64180.0,1.08666573]
[1727766028592,8.54298085,64181.0,64180.0,1.08766573]
[1727766029534,8.54198085,64181.0,64180.0,1.08666573]
[1727766029998,8.54298085,64181.0,64180.0,1.04725318]
[1727766030214,8.54398085,64181.0,64180.0,1.10066541]
[1727766030442,8.54398085,64181.0,64180.0,1.08870944]
[1727766030889,8.54398085,64181.0,64180.0,1.10064923]
[1727766031539,8.54398085,64181.0,64180.0,1.15720357]
[1727766031758,8.54298085,64181.0,64180.0,1.15620357]
[1727766031987,8.54198085,64181.0,64180.0,1.15520357]
[1727766032218,8.54298085,64181.0,64180.0,1.15620357]
[1727766032436,8.54398085,64181.0,64180.0,1.15720357]
[1727766033598,8.54398085,64181.0,64180.0,1.15620357]
[1727766033836,8.48065685,64181.0,64180.0,1.31266137]
[1727766034057,8.41933285,64181.0,64180.0,1.31366137]
[1727766034269,8.38817085,64181.0,64180.0,1.31366137]
[1727766034520,8.38717085,64181.0,64180.0,1.33864095]
[1727766034952,8.29468485,64181.0,64180.0,1.31366137]
[1727766035423,8.29468485,64181.0,64180.0,1.34164095]
[1727766035424,8.23236085,64181.0,64180.0,1.34164095]
[1727766036093,7.62118986,64181.0,64180.0,1.34164095]
[1727766036326,7.55886586,64181.0,64180.0,1.30442413]
[1727766036558,7.55886586,64181.0,64180.0,1.34680283]
[1727766036798,7.49654186,64181.0,64180.0,1.32102667]
[1727766037026,7.49654186,64181.0,64180.0,1.32879594]
[1727766037027,7.40305586,64181.0,64180.0,1.32879594]
[1727766037254,7.40205586,64181.0,64180.0,1.34408892]
[1727766037482,7.40105586,64181.0,64180.0,1.34308892]
[1727766038125,7.40205586,64181.0,64180.0,1.34408892]
[1727766038562,7.40105586,64181.0,64180.0,1.34308892]
[1727766038990,7.37763692,64181.0,64180.0,1.34408892]
[1727766039695,7.37763692,64181.0,64180.0,1.25105655]
[1727766039922,7.37763692,64181.0,64180.0,1.2086948]
[1727766040348,7.37763692,64181.0,64180.0,1.2226948]
[1727766040823,7.37763692,64181.0,64180.0,1.2086948]
[1727766041331,7.54693692,64181.0,64180.0,0.04418979]
[1727766041571,7.54693692,64181.0,64179.0,4.5e-05]
[1727766041572,7.71398654,64181.0,64179.0,4.5e-05]
[1727766041824,7.69979472,64181.0,64180.0,0.014]
[1727766042571,7.54333692,64181.0,64180.0,0.014]
[1727766042836,7.54233692,64181.0,64180.0,0.014]
[1727766043322,7.54233692,64181.0,64180.0,0.0321513]
[1727766043587,7.54233692,64181.0,64180.0,0.05731102]
[1727766043846,7.54233692,64181.0,64180.0,0.001]
[1727766044086,7.56676263,64181.0,64180.0,0.02119673]
[1727766044808,7.56776263,64181.0,64180.0,0.001]
[1727766045054,7.56776263,64181.0,64179.0,4.5e-05]
[1727766045314,7.56676263,64181.0,64179.0,4.5e-05]
[1727766045553,7.56876263,64181.0,64180.0,0.016]
[1727766046526,7.56776263,64181.0,64180.0,0.008]
[1727766047016,7.56876263,64181.0,64180.0,0.008]
[1727766047509,7.47436263,64181.0,64180.0,0.01960719]
[1727766047772,7.57306263,64181.0,64179.0,0.015045]
[1727766048744,7.57206263,64181.0,64179.0,0.008045]
[1727766048987,7.54663692,64181.0,64179.0,4.5e-05]
[1727766049222,7.54763692,64181.0,64180.0,0.008]
[1727766049456,7.54763692,64181.0,64180.0,0.017]
[1727766049457,7.54863692,64181.0,64180.0,0.017]
[1727766049734,7.54763692,64181.0,64180.0,0.008]
[1727766050247,7.54863692,64181.0,64180.0,0.008]
[1727766050733,7.54763692,64181.0,64180.0,0.008]
[1727766051248,7.54863692,64181.0,64180.0,0.017]
[1727766051494,7.54863692,64181.0,64180.0,0.02879624]
[1727766051495,7.54763692,64181.0,64180.0,0.02879624]
[1727766051983,7.54763692,64181.0,64180.0,0.009]
[1727766052259,7.57206193,64181.0,64180.0,0.009]
[1727766052473,7.57306193,64181.0,64180.0,0.010648]
[1727766053399,7.57206193,64181.0,64180.0,0.010648]
[1727766054062,7.54763692,64181.0,64180.0,0.010648]
[1727766054285,7.57206177,64181.0,64180.0,0.010648]
[1727766055420,7.57306177,64181.0,64180.0,0.018648]
[1727766056218,7.57306177,64181.0,64170.0,0.31386]
[1727766056219,0.15583,64173.0,64170.0,0.00219]
[1727766056441,0.1736,64180.0,64170.0,0.00219]
[1727766056442,0.329433,64171.0,64170.0,0.00219]
[1727766056672,0.1736,64171.0,64170.0,0.00219]
[1727766056898,0.329433,64171.0,64170.0,0.00219]
[1727766057563,0.4858908,64171.0,64170.0,0.00219]
[1727766059388,0.1736,64171.0,64170.0,0.00219]
[1727766060313,0.1736,64171.0,64170.0,0.00519]
[1727766060762,0.329433,64171.0,64170.0,0.00519]
[1727766061436,0.4858908,64171.0,64170.0,0.00519]
[1727766061660,0.4858908,64171.0,64170.0,0.00919]
[1727766061898,0.4858908,64171.0,64170.0,0.00619]
[1727766062366,0.4858908,64171.0,64170.0,0.00919]
[1727766062592,0.51032058,64171.0,64170.0,0.00919]
[1727766062802,0.51032058,64171.0,64170.0,0.00619]
[1727766063257,0.51032058,64171.0,64170.0,0.00419]
[1727766063693,0.1736,64171.0,64170.0,0.00419]
[1727766063911,0.19802968,64171.0,64170.0,0.00419]
[1727766064128,0.19802968,64171.0,64170.0,0.005838]
[1727766065767,0.35386268,64171.0,64170.0,0.005838]
[1727766067950,0.51032048,64171.0,64170.0,0.005838]
[1727766068906,0.4858908,64171.0,64170.0,0.005838]
[1727766071168,0.4858908,64171.0,64166.0,1.0]
[1727766071169,0.50711436,64167.0,64166.0,1.0]
[1727766071399,0.66357216,64167.0,64166.0,1.0]
[1727766071623,0.66557216,64167.0,64166.0,1.0]
[1727766071851,0.66557216,64167.0,64166.0,0.37963568]
[1727766071852,0.85012111,64167.0,64166.0,0.37963568]
[1727766072099,0.77981303,64167.0,64166.0,0.04653568]
[1727766072314,0.90942698,64167.0,64166.0,0.04653568]
[1727766072767,0.80420074,64167.0,64166.0,0.04653568]
[1727766073005,0.41775336,64151.0,64146.0,0.23677793]
[1727766073220,0.57421116,64151.0,64146.0,0.23677793]
[1727766073655,0.57421116,64151.0,64135.0,0.001646]
[1727766074328,0.69865113,64151.0,64135.0,0.001646]
[1727766076931,0.69865113,64151.0,64150.0,3.002]
[1727766078043,0.73665113,64151.0,64150.0,3.002]
[1727766078538,0.73665113,64151.0,64150.0,3.004]
[1727766079024,0.71221116,64151.0,64150.0,3.002]
[1727766079512,0.78189379,64151.0,64150.0,2.37659607]
[1727766079779,1.00802572,64151.0,64150.0,2.37659607]
[1727766079996,0.91511555,64151.0,64150.0,2.37659607]
[1727766080446,1.00796091,64151.0,64150.0,2.37659607]
[1727766080673,0.91511555,64151.0,64150.0,2.37459607]
[1727766081111,1.38576555,64151.0,64150.0,2.37459607]
[1727766081342,1.47861091,64151.0,64150.0,2.37459607]
[1727766081563,1.47561091,64151.0,64150.0,2.37459607]
[1727766081785,1.48261091,64151.0,64150.0,2.37459607]
[1727766082001,1.50705376,64151.0,64150.0,2.37459607]
[1727766082251,1.4072084,64151.0,64150.0,2.37459607]
[1727766082490,1.38276555,64151.0,64150.0,2.37459607]
[1727766083407,1.48161091,64151.0,64150.0,2.37459607]
[1727766083642,1.38876555,64151.0,64150.0,2.37459607]
[1727766083858,1.39076555,64151.0,64150.0,2.37459607]
[1727766084520,1.39776555,64151.0,64150.0,2.37459607]
[1727766085421,1.42220817,64151.0,64150.0,2.37459607]
[1727766085704,1.21930378,64151.0,64150.0,2.37459607]
[1727766086399,1.4247546,64151.0,64150.0,2.37459607]
[1727766086624,1.21930378,64151.0,64150.0,2.37459607]
[1727766087587,1.42482111,64151.0,64150.0,2.37459607]
[1727766089432,1.40037849,64151.0,64150.0,2.37459607]
[1727766089652,1.40037849,64151.0,64150.0,2.37624407]
[1727766090973,1.40026633,64151.0,64150.0,2.37624407]
[1727766091227,0.96457845,64151.0,64150.0,2.37624407]
[1727766091450,0.70869645,64151.0,64150.0,2.37624407]
[1727766091665,0.86457845,64151.0,64150.0,2.47574407]
[1727766092114,0.70869645,64151.0,64150.0,2.47574407]
[1727766092574,0.70869645,64151.0,64150.0,2.88766221]
[1727766092803,0.70869645,64151.0,64150.0,3.04354621]
[1727766093027,0.53723865,64151.0,64150.0,3.04354621]
[1727766093503,0.54423865,64151.0,64150.0,3.04354621]
[1727766093726,0.54423865,64151.0,64150.0,2.88909943]
[1727766093962,0.53723865,64151.0,64150.0,2.88709943]
[1727766094422,0.53923865,64151.0,64150.0,2.73421543]
[1727766094642,0.53923865,64151.0,64150.0,2.55494407]
[1727766095308,0.46965,64151.0,64150.0,2.55494407]
[1727766096857,0.46865,64151.0,64150.0,2.55394407]
[1727766097073,0.46765,64151.0,64150.0,2.55194407]
[1727766097351,0.7809898,64151.0,64150.0,2.55494407]
[1727766097846,0.7809898,64151.0,64150.0,2.47974407]
[1727766097847,0.7819898,64151.0,64150.0,2.47974407]
[1727766098819,0.7809898,64151.0,64150.0,2.47674407]
[1727766099551,0.7799898,64151.0,64150.0,2.47574407]
[1727766100247,0.7809898,64151.0,64150.0,2.47674407]
[1727766101245,0.7799898,64151.0,64150.0,2.47574407]
[1727766101672,0.7809898,64151.0,64150.0,2.47674407]
[1727766101874,0.6251078,64151.0,64150.0,2.47674407]
[1727766102096,0.6261078,64151.0,64150.0,2.47974407]
[1727766102320,0.6269318,64151.0,64150.0,2.47974407]
[1727766102795,0.7828138,64151.0,64150.0,2.47974407]
[1727766103260,0.7818138,64151.0,64150.0,2.47674407]
[1727766103704,0.80625205,64151.0,64150.0,2.47674407]
[1727766103965,0.65037005,64151.0,64150.0,2.47674407]
[1727766104185,0.65137005,64151.0,64150.0,2.47974407]
[1727766104653,0.80725205,64151.0,64150.0,2.47974407]
[1727766106486,0.85378387,64151.0,64150.0,2.47974407]
[1727766106904,0.80725205,64151.0,64150.0,2.47974407]
[1727766107336,0.85378387,64151.0,64150.0,2.47974407]
[1727766107546,0.80725205,64151.0,64150.0,2.47974407]
[1727766108666,0.85378387,64151.0,64150.0,2.47974407]
[1727766108950,0.80725205,64151.0,64150.0,2.47974407]
[1727766109211,0.82938104,64151.0,64150.0,2.47974407]
[1727766110066,0.82938104,64151.0,64150.0,0.105148]
[1727766110583,0.7828138,64151.0,64150.0,0.105148]
[1727766112444,0.80725234,64151.0,64150.0,0.105148]
[1727766113584,0.80725234,64151.0,64150.0,0.005648]
[1727766113790,0.90725234,64151.0,64150.0,0.005648]
[1727766114025,0.90925234,64151.0,64150.0,0.005648]
[1727766114239,0.90925234,64151.0,64150.0,0.002648]
[1727766114402,0.90525234,64151.0,64150.0,0.001648]
[1727766114672,0.90725234,64151.0,64150.0,0.001648]
[1727766114810,0.90825234,64151.0,64150.0,0.001648]
[1727766115014,0.90625234,64151.0,64150.0,0.001648]
[1727766115242,0.99525234,64151.0,64150.0,0.001648]
[1727766115410,1.02225234,64151.0,64150.0,0.001648]
[1727766115597,1.02725234,64151.0,64150.0,0.001648]
[1727766115810,1.03425234,64151.0,64150.0,0.001648]
[1727766116245,1.03125234,64151.0,64150.0,0.001648]
[1727766117183,1.02925234,64151.0,64150.0,0.001648]
[1727766117634,1.03125234,64151.0,64150.0,0.001648]
[1727766118097,1.02525234,64151.0,64150.0,0.001648]
[1727766118308,1.03725234,64151.0,64150.0,0.001648]
[1727766118522,1.04625234,64151.0,64150.0,0.001648]
[1727766119296,0.96425234,64151.0,64150.0,0.001648]
[1727766119520,0.95325234,64151.0,64150.0,0.001648]
[1727766119841,0.96425234,64151.0,64150.0,0.001648]
[1727766120944,0.92625234,64151.0,64150.0,0.001648]
[1727766121892,0.9018138,64151.0,64150.0,0.001648]
[1727766123619,0.155894,64146.0,64145.0,0.0821]
[1727766123856,0.38237962,64146.0,64145.0,0.0821]
[1727766124070,0.3823781,64146.0,64145.0,0.0821]
[1727766124324,0.1564578,64146.0,64145.0,0.0821]
[1727766124992,0.18089789,64146.0,64145.0,0.0821]
[1727766125454,0.1564578,64146.0,64145.0,0.0821]
[1727766125715,0.1614578,64146.0,64145.0,0.0821]
[1727766125950,0.3233518,64146.0,64145.0,0.0821]
[1727766126399,0.39338929,64146.0,64145.0,0.0821]
[1727766126617,0.39338929,64146.0,64145.0,0.1792]
[1727766126863,0.3233518,64146.0,64145.0,0.1792]
[1727766127555,0.52535665,64146.0,64145.0,0.0971]
[1727766127787,0.155906,64141.0,64140.0,0.0777]
[1727766128017,0.35907187,64141.0,64140.0,0.0777]
[1727766128234,0.155911,64139.0,64138.0,0.0995]
[1727766128496,0.3123688,64139.0,64138.0,0.0995]
[1727766128731,0.22651991,64139.0,64138.0,0.0995]
[1727766129235,0.38243091,64139.0,64138.0,0.0995]
[1727766129514,0.3123688,64139.0,64138.0,0.0995]
[1727766129751,0.51395145,64139.0,64138.0,0.0995]
[1727766130001,0.51395145,64139.0,64138.0,0.1015]
[1727766130693,0.35804045,64139.0,64138.0,0.1015]
[1727766131595,0.45140885,64139.0,64138.0,0.1015]
[1727766132106,0.45140885,64139.0,64138.0,0.0995]
[1727766132345,0.45140885,64139.0,64138.0,0.1015]
[1727766132559,0.475851,64139.0,64138.0,0.1015]
[1727766132774,0.475851,64139.0,64138.0,0.1005]
[1727766133166,0.631762,64139.0,64138.0,0.1015]
[1727766133611,0.38251019,64139.0,64138.0,0.1015]
[1727766134614,0.4993871,64139.0,64138.0,0.1015]